[Event "Late-Titled-Tuesday-Blitz-October-10-2023"]
[Site "Chess.com"]
[Date "2023.10.10"]
[Round "1"]
[White "Nick12772"]
[Black "Ali_rastbod"]
[Result "0-1"]
[WhiteElo "2407"]
[BlackElo "2741"]
[TimeControl "180+1"]
[EndTime "14:08:42 PDT"]
[Termination "Ali_rastbod won by resignation"]

1. Nf3 {[%clk 0:03:00.9]} 1... c5 {[%clk 0:02:58.7]} 2. g3 {[%clk 0:03:01]} 2...
Nc6 {[%clk 0:02:59.2]} 3. d4 {[%clk 0:03:00.5]} 3... cxd4 {[%clk 0:02:59.4]} 4.
Nxd4 {[%clk 0:03:01.4]} 4... g6 {[%clk 0:02:58.7]} 5. Bg2 {[%clk 0:03:01.6]}
5... Bg7 {[%clk 0:02:58.3]} 6. Nxc6 {[%clk 0:03:02.3]} 6... bxc6 {[%clk
0:02:59.2]} 7. O-O {[%clk 0:03:01.7]} 7... Rb8 {[%clk 0:02:59.4]} 8. c4 {[%clk
0:03:02.1]} 8... Rxb2 {[%clk 0:02:58.5]} 9. Bxb2 {[%clk 0:02:47.9]} 9... Bxb2
{[%clk 0:02:59.4]} 10. Nd2 {[%clk 0:02:36.9]} 10... Bxa1 {[%clk 0:02:59.4]} 11.
Qxa1 {[%clk 0:02:37.5]} 11... Nf6 {[%clk 0:03:00.1]} 12. Ne4 {[%clk 0:02:27.7]}
12... O-O {[%clk 0:02:59.1]} 13. Nxf6+ {[%clk 0:02:28]} 13... exf6 {[%clk
0:03:00]} 14. Rd1 {[%clk 0:02:25.8]} 14... Qe7 {[%clk 0:02:54.6]} 15. e3 {[%clk
0:02:21.1]} 15... c5 {[%clk 0:02:34.9]} 16. Qc3 {[%clk 0:02:12.1]} 16... d6
{[%clk 0:02:33.8]} 17. Qa5 {[%clk 0:02:07.5]} 17... Be6 {[%clk 0:02:29.7]} 18.
Qa6 {[%clk 0:01:59.7]} 18... Rd8 {[%clk 0:02:26.8]} 19. Rb1 {[%clk 0:01:49.8]}
19... Kg7 {[%clk 0:02:21.9]} 20. Rb7 {[%clk 0:01:47.6]} 20... Rd7 {[%clk
0:02:21.6]} 21. Rxd7 {[%clk 0:01:40.3]} 21... Qxd7 {[%clk 0:02:19.4]} 22. h4
{[%clk 0:01:32.5]} 22... Qc7 {[%clk 0:02:01.9]} 23. Qb5 {[%clk 0:01:27.6]} 23...
Qb6 {[%clk 0:01:55.5]} 24. a4 {[%clk 0:01:10.6]} 24... Qc7 {[%clk 0:00:48.2]}
25. a5 {[%clk 0:01:08]} 25... Bd7 {[%clk 0:00:45.6]} 26. Qb7 {[%clk 0:00:51.5]}
26... Qxb7 {[%clk 0:00:41.3]} 27. Bxb7 {[%clk 0:00:52.4]} 27... Be6 {[%clk
0:00:38.5]} 28. Ba6 {[%clk 0:00:52.7]} 28... f5 {[%clk 0:00:38.3]} 29. Kf1
{[%clk 0:00:53.1]} 29... Kf6 {[%clk 0:00:38.9]} 30. Ke2 {[%clk 0:00:53.8]} 30...
Ke5 {[%clk 0:00:39.5]} 31. Kd3 {[%clk 0:00:51.6]} 31... d5 {[%clk 0:00:18.5]}
32. f4+ {[%clk 0:00:47.9]} 32... Kd6 {[%clk 0:00:18.7]} 33. cxd5 {[%clk
0:00:44.9]} 33... Bxd5 {[%clk 0:00:19.6]} 34. Kc3 {[%clk 0:00:38.6]} 34... f6
{[%clk 0:00:18.4]} 35. Be2 {[%clk 0:00:37.7]} 35... h6 {[%clk 0:00:18.1]} 36. g4
{[%clk 0:00:31.4]} 36... fxg4 {[%clk 0:00:13.4]} 37. Bxg4 {[%clk 0:00:32.3]}
37... g5 {[%clk 0:00:14]} 38. fxg5 {[%clk 0:00:30.4]} 38... hxg5 {[%clk
0:00:09.7]} 39. h5 {[%clk 0:00:30.1]} 39... Bf7 {[%clk 0:00:10.4]} 40. h6 {[%clk
0:00:29.3]} 40... Bg6 {[%clk 0:00:10.6]} 41. Be2 {[%clk 0:00:25.9]} 41... f5
{[%clk 0:00:06.6]} 42. Bc4 {[%clk 0:00:20.7]} 42... g4 {[%clk 0:00:06.4]} 43.
Bf7 {[%clk 0:00:19.3]} 43... Bh7 {[%clk 0:00:06.1]} 44. Kd2 {[%clk 0:00:18.1]}
44... Ke5 {[%clk 0:00:05.9]} 45. Ke2 {[%clk 0:00:16.3]} 45... f4 {[%clk
0:00:05.2]} 46. exf4+ {[%clk 0:00:16.1]} 46... Kxf4 {[%clk 0:00:06.1]} 47. Kf2
{[%clk 0:00:15.2]} 47... Kg5 {[%clk 0:00:04.8]} 48. Kg3 {[%clk 0:00:15.5]} 48...
Kxh6 {[%clk 0:00:05.5]} 49. Kxg4 {[%clk 0:00:15.7]} 49... Kg7 {[%clk 0:00:06.2]}
50. Ba2 {[%clk 0:00:13.6]} 50... Kf6 {[%clk 0:00:04.5]} 51. Kf4 {[%clk
0:00:13.9]} 51... Bf5 {[%clk 0:00:05.2]} 52. Bd5 {[%clk 0:00:10.2]} 52... Be6
{[%clk 0:00:05.8]} 53. Ke4 {[%clk 0:00:08.9]} 53... Bf5+ {[%clk 0:00:06.1]} 54.
Kf4 {[%clk 0:00:06.3]} 54... Bg6 {[%clk 0:00:06.6]} 55. Bc4 {[%clk 0:00:05.9]}
55... Bc2 {[%clk 0:00:04.9]} 56. Bd5 {[%clk 0:00:05.9]} 56... Bd3 {[%clk
0:00:05.2]} 57. Ba2 {[%clk 0:00:05.4]} 57... c4 {[%clk 0:00:04.8]} 58. Ke3
{[%clk 0:00:05.7]} 58... Ke5 {[%clk 0:00:05.7]} 59. Kd2 {[%clk 0:00:06.1]} 59...
Kd4 {[%clk 0:00:06.4]} 60. Bxc4 {[%clk 0:00:04.9]} 60... Kxc4 {[%clk 0:00:05.7]}
61. Kc1 {[%clk 0:00:05.3]} 61... Kc3 {[%clk 0:00:06.2]} 62. a6 {[%clk
0:00:04.9]} 62... Be4 {[%clk 0:00:05.4]} 63. Kd1 {[%clk 0:00:04]} 63... Kb2
{[%clk 0:00:04.4]} 64. Kd2 {[%clk 0:00:04.4]} 64... Bc6 {[%clk 0:00:04.9]} 65.
Kd3 {[%clk 0:00:04.7]} 65... Kb3 {[%clk 0:00:05.6]} 66. Kd2 {[%clk 0:00:04]}
66... Kb2 {[%clk 0:00:06.2]} 67. Kd3 {[%clk 0:00:04.4]} 67... Bb5+ {[%clk
0:00:07]} 68. Kd4 {[%clk 0:00:03.9]} 68... Bxa6 {[%clk 0:00:07.6]} 69. Kc5
{[%clk 0:00:04.5]} 69... Bd3 {[%clk 0:00:07.8]} 70. Kb4 {[%clk 0:00:04.7]} 70...
a6 {[%clk 0:00:07.7]} 71. Ka5 {[%clk 0:00:05.3]} 71... Kb3 {[%clk 0:00:07.3]}
72. Kb6 {[%clk 0:00:05.2]} 72... Kb4 {[%clk 0:00:08]} 73. Kc6 {[%clk 0:00:05.4]}
73... a5 {[%clk 0:00:08.9]} 74. Kd5 {[%clk 0:00:06.3]} 74... Kc3 {[%clk
0:00:09.5]} 75. Kc5 {[%clk 0:00:06.8]} 75... a4 {[%clk 0:00:10.4]} 0-1

[Event "Late-Titled-Tuesday-Blitz-October-10-2023"]
[Site "Chess.com"]
[Date "2023.10.10"]
[Round "1"]
[White "JoakimVonAnd"]
[Black "egnfanclub"]
[Result "1-0"]
[WhiteElo "2692"]
[BlackElo "2372"]
[TimeControl "180+1"]
[EndTime "14:08:42 PDT"]
[Termination "JoakimVonAnd won by checkmate"]

1. d4 {[%clk 0:02:59]} 1... d5 {[%clk 0:02:59.6]} 2. Nf3 {[%clk 0:02:58]} 2...
Nf6 {[%clk 0:02:59.2]} 3. g3 {[%clk 0:02:58.1]} 3... b5 {[%clk 0:02:58.5]} 4.
Bg2 {[%clk 0:02:57.5]} 4... Bb7 {[%clk 0:02:58.8]} 5. a4 {[%clk 0:02:56.5]} 5...
b4 {[%clk 0:02:58.7]} 6. Ne5 {[%clk 0:02:53.8]} 6... Nbd7 {[%clk 0:02:54.7]} 7.
c4 {[%clk 0:02:54.1]} 7... e6 {[%clk 0:02:54.1]} 8. O-O {[%clk 0:02:51.1]} 8...
a5 {[%clk 0:02:42.1]} 9. Nd2 {[%clk 0:02:36.7]} 9... Nxe5 {[%clk 0:02:41]} 10.
dxe5 {[%clk 0:02:35.9]} 10... Nd7 {[%clk 0:02:39.6]} 11. cxd5 {[%clk 0:02:27.4]}
11... Nxe5 {[%clk 0:02:39]} 12. dxe6 {[%clk 0:02:24.5]} 12... Bxg2 {[%clk
0:02:36.2]} 13. exf7+ {[%clk 0:02:24.9]} 13... Nxf7 {[%clk 0:02:36.1]} 14. Kxg2
{[%clk 0:02:25.2]} 14... Bd6 {[%clk 0:02:27.5]} 15. Nf3 {[%clk 0:02:07.8]} 15...
O-O {[%clk 0:02:27.3]} 16. Be3 {[%clk 0:02:08]} 16... Qf6 {[%clk 0:02:11]} 17.
Qb3 {[%clk 0:02:06.6]} 17... Kh8 {[%clk 0:02:09.1]} 18. Rac1 {[%clk 0:02:05.3]}
18... Ne5 {[%clk 0:02:07.7]} 19. Bd4 {[%clk 0:02:04.3]} 19... Rae8 {[%clk
0:01:49.3]} 20. Qd5 {[%clk 0:01:59.7]} 20... Qf7 {[%clk 0:01:43.7]} 21. Qxf7
{[%clk 0:01:54.7]} 21... Nxf7 {[%clk 0:01:41.6]} 22. Bc5 {[%clk 0:01:49.6]}
22... Rxe2 {[%clk 0:01:37.8]} 23. b3 {[%clk 0:01:43.6]} 23... Rb2 {[%clk
0:01:29.8]} 24. Nd4 {[%clk 0:01:39.2]} 24... Ne5 {[%clk 0:01:24]} 25. Bxd6
{[%clk 0:01:23.3]} 25... cxd6 {[%clk 0:01:23.8]} 26. Rc2 {[%clk 0:01:23.8]}
26... Rxc2 {[%clk 0:01:16.2]} 27. Nxc2 {[%clk 0:01:24.7]} 27... Rc8 {[%clk
0:01:13.1]} 28. Nd4 {[%clk 0:01:24.8]} 28... Rc3 {[%clk 0:01:08.6]} 29. Rd1
{[%clk 0:01:23.4]} 29... g6 {[%clk 0:00:57.2]} 30. Ne6 {[%clk 0:01:18.3]} 30...
Nd3 {[%clk 0:00:48.3]} 31. Nd4 {[%clk 0:01:12]} 31... Kg7 {[%clk 0:00:43.3]} 32.
Kf1 {[%clk 0:01:07.4]} 32... Nc5 {[%clk 0:00:42.1]} 33. Ke2 {[%clk 0:00:48.8]}
33... Nxb3 {[%clk 0:00:37.5]} 34. Ne6+ {[%clk 0:00:49.1]} 34... Kf7 {[%clk
0:00:31.8]} 35. Rxd6 {[%clk 0:00:50]} 35... Nc5 {[%clk 0:00:25.4]} 36. Nxc5
{[%clk 0:00:43.1]} 36... Rxc5 {[%clk 0:00:26.3]} 37. Ra6 {[%clk 0:00:35.7]}
37... h5 {[%clk 0:00:25.6]} 38. h4 {[%clk 0:00:33.4]} 38... Kg7 {[%clk
0:00:23.3]} 39. Kd3 {[%clk 0:00:31.4]} 39... Rc3+ {[%clk 0:00:19.2]} 40. Ke4
{[%clk 0:00:30.6]} 40... Ra3 {[%clk 0:00:18.2]} 41. Rxa5 {[%clk 0:00:30.8]}
41... b3 {[%clk 0:00:18.6]} 42. Ke5 {[%clk 0:00:24.7]} 42... b2 {[%clk
0:00:17.9]} 43. Ra7+ {[%clk 0:00:25]} 43... Kh6 {[%clk 0:00:17.8]} 44. Rb7
{[%clk 0:00:25.5]} 44... Rxa4 {[%clk 0:00:14.4]} 45. Rxb2 {[%clk 0:00:25.6]}
45... Ra5+ {[%clk 0:00:14.6]} 46. Ke4 {[%clk 0:00:26.1]} 46... Ra4+ {[%clk
0:00:14.9]} 47. Ke3 {[%clk 0:00:26.5]} 47... Ra3+ {[%clk 0:00:15.5]} 48. Kf4
{[%clk 0:00:27.1]} 48... Ra4+ {[%clk 0:00:15.5]} 49. Kf3 {[%clk 0:00:27.7]}
49... Ra5 {[%clk 0:00:15.6]} 50. Rb7 {[%clk 0:00:26.5]} 50... Rf5+ {[%clk
0:00:15.9]} 51. Ke3 {[%clk 0:00:25.8]} 51... Re5+ {[%clk 0:00:15.9]} 52. Kd2
{[%clk 0:00:25]} 52... Rd5+ {[%clk 0:00:15.5]} 53. Ke2 {[%clk 0:00:25.3]} 53...
Re5+ {[%clk 0:00:15.9]} 54. Kf1 {[%clk 0:00:25.8]} 54... Rf5 {[%clk 0:00:16.1]}
55. Kg2 {[%clk 0:00:26.4]} 55... Ra5 {[%clk 0:00:16]} 56. Rc7 {[%clk 0:00:21.9]}
56... Ra2 {[%clk 0:00:16.1]} 57. Rf7 {[%clk 0:00:21.7]} 57... Rb2 {[%clk
0:00:16.6]} 58. Kh3 {[%clk 0:00:19.8]} 58... Rb1 {[%clk 0:00:15.2]} 59. f3
{[%clk 0:00:19.9]} 59... Rh1+ {[%clk 0:00:15]} 60. Kg2 {[%clk 0:00:20.3]} 60...
Ra1 {[%clk 0:00:15.9]} 61. g4 {[%clk 0:00:20.9]} 61... Ra2+ {[%clk 0:00:15.7]}
62. Kg3 {[%clk 0:00:21.2]} 62... hxg4 {[%clk 0:00:16]} 63. fxg4 {[%clk
0:00:19.2]} 63... Ra3+ {[%clk 0:00:16.5]} 64. Kf4 {[%clk 0:00:18.9]} 64... Ra4+
{[%clk 0:00:16.6]} 65. Kf3 {[%clk 0:00:19.6]} 65... Ra3+ {[%clk 0:00:17]} 66.
Kf4 {[%clk 0:00:17.9]} 66... Ra4+ {[%clk 0:00:17.4]} 67. Kf3 {[%clk 0:00:17.5]}
67... Ra3+ {[%clk 0:00:17.7]} 68. Kg2 {[%clk 0:00:16.7]} 68... Ra2+ {[%clk
0:00:17.9]} 69. Kg3 {[%clk 0:00:16.8]} 69... Ra3+ {[%clk 0:00:18.3]} 70. Rf3
{[%clk 0:00:17.5]} 70... Ra4 {[%clk 0:00:16.6]} 71. Rb3 {[%clk 0:00:15.7]} 71...
Ra1 {[%clk 0:00:15.7]} 72. Rb7 {[%clk 0:00:13.5]} 72... Ra4 {[%clk 0:00:12.4]}
73. g5+ {[%clk 0:00:12.4]} 73... Kh5 {[%clk 0:00:11.4]} 74. Rh7# {[%clk
0:00:13.1]} 1-0

[Event "Late-Titled-Tuesday-Blitz-October-10-2023"]
[Site "Chess.com"]
[Date "2023.10.10"]
[Round "1"]
[White "josiur"]
[Black "Polish_fighter3000"]
[Result "0-1"]
[WhiteElo "2515"]
[BlackElo "3051"]
[TimeControl "180+1"]
[EndTime "14:08:53 PDT"]
[Termination "Polish_fighter3000 won by checkmate"]

1. d4 {[%clk 0:02:57]} 1... Nf6 {[%clk 0:02:57.9]} 2. Nf3 {[%clk 0:02:57.1]}
2... g6 {[%clk 0:02:58.2]} 3. Nc3 {[%clk 0:02:57]} 3... Bg7 {[%clk 0:02:55.6]}
4. Bf4 {[%clk 0:02:54.9]} 4... d6 {[%clk 0:02:55.4]} 5. e4 {[%clk 0:02:54.8]}
5... Nc6 {[%clk 0:02:43.6]} 6. d5 {[%clk 0:02:49.1]} 6... e5 {[%clk 0:02:40.3]}
7. Bg5 {[%clk 0:02:30.4]} 7... Ne7 {[%clk 0:02:39.8]} 8. h3 {[%clk 0:02:28.7]}
8... h6 {[%clk 0:01:59.2]} 9. Be3 {[%clk 0:02:27.5]} 9... O-O {[%clk 0:01:56.5]}
10. Qd2 {[%clk 0:02:26.9]} 10... Kh7 {[%clk 0:01:56.4]} 11. g4 {[%clk 0:02:19]}
11... Bd7 {[%clk 0:01:43.6]} 12. g5 {[%clk 0:02:09.7]} 12... Nfg8 {[%clk
0:01:20.7]} 13. gxh6 {[%clk 0:02:07.2]} 13... Bxh6 {[%clk 0:01:21.6]} 14. Ng5+
{[%clk 0:01:54.5]} 14... Kg7 {[%clk 0:01:21.3]} 15. h4 {[%clk 0:01:52.9]} 15...
f5 {[%clk 0:01:06.4]} 16. exf5 {[%clk 0:01:44.2]} 16... Nxf5 {[%clk 0:01:05.5]}
17. Ne6+ {[%clk 0:01:30.3]} 17... Bxe6 {[%clk 0:01:04.5]} 18. Bxh6+ {[%clk
0:01:29.5]} 18... Ngxh6 {[%clk 0:01:02.5]} 19. dxe6 {[%clk 0:01:29.6]} 19... Nd4
{[%clk 0:01:00.9]} 20. Bg2 {[%clk 0:01:22.4]} 20... Nxe6 {[%clk 0:01:01]} 21.
O-O-O {[%clk 0:01:20.7]} 21... Rb8 {[%clk 0:00:50.6]} 22. Rdg1 {[%clk
0:01:17.6]} 22... Nf5 {[%clk 0:00:36.8]} 23. Bd5 {[%clk 0:00:48.7]} 23... Nf4
{[%clk 0:00:33]} 24. h5 {[%clk 0:00:46.5]} 24... Rh8 {[%clk 0:00:21.4]} 25. hxg6
{[%clk 0:00:36.7]} 25... Qd7 {[%clk 0:00:20.6]} 26. Rh7+ {[%clk 0:00:32.6]}
26... Rxh7 {[%clk 0:00:18.9]} 27. gxh7+ {[%clk 0:00:33.5]} 27... Kxh7 {[%clk
0:00:19.5]} 28. Be4 {[%clk 0:00:30.7]} 28... Kh8 {[%clk 0:00:15.2]} 29. f3
{[%clk 0:00:23.8]} 29... Nh6 {[%clk 0:00:04.3]} 30. Qh2 {[%clk 0:00:18.5]} 30...
Qh3 {[%clk 0:00:04.4]} 31. Qxh3 {[%clk 0:00:14.6]} 31... Nxh3 {[%clk 0:00:05.3]}
32. Rh1 {[%clk 0:00:15.1]} 32... c6 {[%clk 0:00:05.8]} 33. Rxh3 {[%clk
0:00:14.9]} 33... Kg7 {[%clk 0:00:06.5]} 34. Rg3+ {[%clk 0:00:14.5]} 34... Kf8
{[%clk 0:00:06.9]} 35. Rg6 {[%clk 0:00:13.9]} 35... Nf7 {[%clk 0:00:07.4]} 36.
Bf5 {[%clk 0:00:12.6]} 36... d5 {[%clk 0:00:07.6]} 37. Ne2 {[%clk 0:00:07.5]}
37... Ke7 {[%clk 0:00:08]} 38. Ng3 {[%clk 0:00:07.5]} 38... Rh8 {[%clk 0:00:08]}
39. Kd2 {[%clk 0:00:07.2]} 39... a5 {[%clk 0:00:07.5]} 40. a4 {[%clk 0:00:06.9]}
40... Rh2+ {[%clk 0:00:07.2]} 41. Ne2 {[%clk 0:00:06.5]} 41... Rf2 {[%clk
0:00:06.1]} 42. Bg4 {[%clk 0:00:05.9]} 42... Rh2 {[%clk 0:00:04.7]} 43. Ke3
{[%clk 0:00:05.1]} 43... Rh1 {[%clk 0:00:03.7]} 44. b3 {[%clk 0:00:04.8]} 44...
Re1 {[%clk 0:00:03.6]} 45. Kd2 {[%clk 0:00:05.2]} 45... Rh1 {[%clk 0:00:03.8]}
46. Re6+ {[%clk 0:00:06.1]} 46... Kf8 {[%clk 0:00:03.4]} 47. Rf6 {[%clk
0:00:06.5]} 47... Ke7 {[%clk 0:00:03.3]} 48. Rf5 {[%clk 0:00:07.1]} 48... Rh2
{[%clk 0:00:02.4]} 49. Ke3 {[%clk 0:00:07.4]} 49... Rg2 {[%clk 0:00:02.4]} 50.
Kd3 {[%clk 0:00:07.7]} 50... Rh2 {[%clk 0:00:02.5]} 51. Ng3 {[%clk 0:00:07.8]}
51... Rg2 {[%clk 0:00:02.3]} 52. Nf1 {[%clk 0:00:08.1]} 52... Rf2 {[%clk
0:00:02.3]} 53. Ne3 {[%clk 0:00:08.3]} 53... Rh2 {[%clk 0:00:02.4]} 54. c4
{[%clk 0:00:06.9]} 54... d4 {[%clk 0:00:01.9]} 55. Nc2 {[%clk 0:00:07.1]} 55...
Rf2 {[%clk 0:00:02.1]} 56. f4 {[%clk 0:00:06]} 56... exf4 {[%clk 0:00:01.8]} 57.
Nxd4 {[%clk 0:00:06.4]} 57... Nh6 {[%clk 0:00:02.3]} 58. Rg5 {[%clk 0:00:05.3]}
58... Kf6 {[%clk 0:00:02.7]} 59. Rh5 {[%clk 0:00:03.9]} 59... Nxg4 {[%clk
0:00:02.8]} 60. Rh4 {[%clk 0:00:04]} 60... Kg5 {[%clk 0:00:03.2]} 61. Rh7 {[%clk
0:00:03]} 61... Ne5+ {[%clk 0:00:02.6]} 62. Kc3 {[%clk 0:00:02.4]} 62... Nf3
{[%clk 0:00:02.5]} 63. Rg7+ {[%clk 0:00:02.6]} 63... Kf6 {[%clk 0:00:03]} 64.
Rxb7 {[%clk 0:00:03.5]} 64... Nxd4 {[%clk 0:00:03.3]} 65. Kxd4 {[%clk
0:00:03.7]} 65... Re2 {[%clk 0:00:04]} 66. Kc5 {[%clk 0:00:04.3]} 66... f3
{[%clk 0:00:04.3]} 67. Rb8 {[%clk 0:00:04.9]} 67... Re7 {[%clk 0:00:04.9]} 68.
Rf8+ {[%clk 0:00:04.9]} 68... Rf7 {[%clk 0:00:05.1]} 69. Rd8 {[%clk 0:00:05.8]}
69... f2 {[%clk 0:00:04.5]} 70. Rd6+ {[%clk 0:00:06.7]} 70... Ke5 {[%clk
0:00:04.8]} 71. Rxc6 {[%clk 0:00:07.6]} 71... f1=Q {[%clk 0:00:05.3]} 72. Kb5
{[%clk 0:00:08.5]} 72... Qf2 {[%clk 0:00:05.8]} 73. Rc5+ {[%clk 0:00:08.6]}
73... Ke4 {[%clk 0:00:05.9]} 74. Rd5 {[%clk 0:00:07.5]} 74... Rb7+ {[%clk
0:00:05.3]} 75. Kc6 {[%clk 0:00:07.9]} 75... Qb6# {[%clk 0:00:05.8]} 0-1

[Event "Late-Titled-Tuesday-Blitz-October-10-2023"]
[Site "Chess.com"]
[Date "2023.10.10"]
[Round "1"]
[White "2typicalchessplayer"]
[Black "dedpihto_v_kozhanom_palto"]
[Result "1/2-1/2"]
[WhiteElo "2355"]
[BlackElo "2669"]
[TimeControl "180+1"]
[EndTime "14:09:31 PDT"]
[Termination "Game drawn - insufficient material"]

1. d4 {[%clk 0:02:59.8]} 1... g6 {[%clk 0:03:00.1]} 2. Nf3 {[%clk 0:03:00.1]}
2... Bg7 {[%clk 0:03:00.5]} 3. e4 {[%clk 0:03:00.6]} 3... d6 {[%clk 0:03:01]} 4.
Bd3 {[%clk 0:03:00.7]} 4... Nc6 {[%clk 0:03:01.6]} 5. c3 {[%clk 0:03:00.3]} 5...
e5 {[%clk 0:03:00.9]} 6. dxe5 {[%clk 0:02:58.8]} 6... Nxe5 {[%clk 0:03:01.3]} 7.
Be2 {[%clk 0:02:57.5]} 7... Nxf3+ {[%clk 0:02:53.9]} 8. Bxf3 {[%clk 0:02:58.4]}
8... Nf6 {[%clk 0:02:54.5]} 9. O-O {[%clk 0:02:57.8]} 9... O-O {[%clk 0:02:55]}
10. h3 {[%clk 0:02:57.6]} 10... Be6 {[%clk 0:02:44.2]} 11. Re1 {[%clk
0:02:55.7]} 11... Nd7 {[%clk 0:02:43]} 12. Nd2 {[%clk 0:02:35.9]} 12... Ne5
{[%clk 0:02:25.2]} 13. Be2 {[%clk 0:02:35.3]} 13... Qh4 {[%clk 0:02:25.4]} 14.
Nf3 {[%clk 0:02:25.5]} 14... Qxe4 {[%clk 0:02:19.2]} 15. Nxe5 {[%clk 0:02:19.5]}
15... Qxe5 {[%clk 0:02:20.1]} 16. Bc4 {[%clk 0:02:18.4]} 16... Qf6 {[%clk
0:02:19.1]} 17. Bxe6 {[%clk 0:02:06.2]} 17... fxe6 {[%clk 0:02:20]} 18. Be3
{[%clk 0:02:06.6]} 18... b6 {[%clk 0:02:16.5]} 19. Qb3 {[%clk 0:02:06.1]} 19...
Kh8 {[%clk 0:02:15]} 20. Bd4 {[%clk 0:02:02.9]} 20... e5 {[%clk 0:02:14.9]} 21.
Be3 {[%clk 0:02:03.6]} 21... a5 {[%clk 0:02:14.6]} 22. Rad1 {[%clk 0:02:02.4]}
22... Qf7 {[%clk 0:02:07.7]} 23. Qa4 {[%clk 0:01:58.3]} 23... Rfb8 {[%clk
0:02:02.8]} 24. c4 {[%clk 0:01:54.7]} 24... Rf8 {[%clk 0:02:00.8]} 25. Qc6
{[%clk 0:01:42.8]} 25... Rac8 {[%clk 0:02:00.3]} 26. b3 {[%clk 0:01:40.4]} 26...
Qe8 {[%clk 0:01:55.5]} 27. Qe4 {[%clk 0:01:34.2]} 27... Rf7 {[%clk 0:01:52.7]}
28. f3 {[%clk 0:01:27.9]} 28... Qf8 {[%clk 0:01:50.1]} 29. Re2 {[%clk
0:01:22.9]} 29... Bh6 {[%clk 0:01:48.5]} 30. Bxh6 {[%clk 0:01:13.7]} 30... Qxh6
{[%clk 0:01:49.4]} 31. Qb7 {[%clk 0:01:13.8]} 31... Rcf8 {[%clk 0:01:49.3]} 32.
Re4 {[%clk 0:01:03.1]} 32... Qg5 {[%clk 0:01:46.6]} 33. Kh1 {[%clk 0:00:57.8]}
33... h5 {[%clk 0:01:41.5]} 34. Qd5 {[%clk 0:00:44.3]} 34... Qg3 {[%clk
0:01:37.2]} 35. Re3 {[%clk 0:00:33.1]} 35... Rf4 {[%clk 0:01:25]} 36. Qe6 {[%clk
0:00:30.6]} 36... Kh7 {[%clk 0:01:18.2]} 37. a3 {[%clk 0:00:29.1]} 37... R8f7
{[%clk 0:01:14.5]} 38. b4 {[%clk 0:00:28.7]} 38... axb4 {[%clk 0:01:15.4]} 39.
axb4 {[%clk 0:00:29.6]} 39... Qg5 {[%clk 0:01:15.2]} 40. Red3 {[%clk 0:00:26.3]}
40... R4f6 {[%clk 0:01:05.8]} 41. Qd5 {[%clk 0:00:26.6]} 41... Rf8 {[%clk
0:01:05.7]} 42. c5 {[%clk 0:00:26.7]} 42... bxc5 {[%clk 0:01:05.5]} 43. bxc5
{[%clk 0:00:27.6]} 43... Qg3 {[%clk 0:00:56.9]} 44. Qc6 {[%clk 0:00:24.6]} 44...
dxc5 {[%clk 0:00:51.6]} 45. Qxc5 {[%clk 0:00:23.8]} 45... e4 {[%clk 0:00:50.7]}
46. Rd7+ {[%clk 0:00:19.5]} 46... Kh6 {[%clk 0:00:46]} 47. Qe3+ {[%clk
0:00:19.1]} 47... g5 {[%clk 0:00:46.3]} 48. Qxe4 {[%clk 0:00:19.4]} 48... Rg6
{[%clk 0:00:38.7]} 49. Re7 {[%clk 0:00:19.2]} 49... Rb8 {[%clk 0:00:24]} 50. Re6
{[%clk 0:00:15.8]} 50... Rg8 {[%clk 0:00:20.7]} 51. Rxg6+ {[%clk 0:00:15.8]}
51... Rxg6 {[%clk 0:00:21.6]} 52. Qd4 {[%clk 0:00:15.3]} 52... Kh7 {[%clk
0:00:18.7]} 53. Qd7+ {[%clk 0:00:15.2]} 53... Rg7 {[%clk 0:00:19.3]} 54. Qc6
{[%clk 0:00:15.3]} 54... Qe5 {[%clk 0:00:18.3]} 55. Qe4+ {[%clk 0:00:15.7]}
55... Qxe4 {[%clk 0:00:18.7]} 56. fxe4 {[%clk 0:00:16.6]} 56... Re7 {[%clk
0:00:19.3]} 57. Rd4 {[%clk 0:00:17.1]} 57... Kg7 {[%clk 0:00:19.4]} 58. Rc4
{[%clk 0:00:17.8]} 58... Kf6 {[%clk 0:00:19.7]} 59. Kg1 {[%clk 0:00:18.5]} 59...
Ke5 {[%clk 0:00:20.2]} 60. Kf2 {[%clk 0:00:19.1]} 60... Kd6 {[%clk 0:00:12.7]}
61. Ke3 {[%clk 0:00:19.4]} 61... Rf7 {[%clk 0:00:10.3]} 62. Rd4+ {[%clk
0:00:19.1]} 62... Ke6 {[%clk 0:00:10.3]} 63. Rd5 {[%clk 0:00:19.6]} 63... Rg7
{[%clk 0:00:10.9]} 64. Rf5 {[%clk 0:00:19.8]} 64... Rg8 {[%clk 0:00:09.8]} 65.
g3 {[%clk 0:00:20]} 65... Rg7 {[%clk 0:00:09.3]} 66. g4 {[%clk 0:00:20.4]} 66...
hxg4 {[%clk 0:00:09.8]} 67. hxg4 {[%clk 0:00:21.3]} 67... Rg8 {[%clk 0:00:10.5]}
68. Kd4 {[%clk 0:00:21.6]} 68... Rd8+ {[%clk 0:00:11]} 69. Kc5 {[%clk
0:00:21.8]} 69... Rg8 {[%clk 0:00:10.6]} 70. Kc6 {[%clk 0:00:21.9]} 70... Rg7
{[%clk 0:00:11.3]} 71. Kc5 {[%clk 0:00:20.5]} 71... Rg8 {[%clk 0:00:11]} 72. Kc6
{[%clk 0:00:21.1]} 72... Rg7 {[%clk 0:00:11.4]} 73. Rf8 {[%clk 0:00:21.1]} 73...
Rh7 {[%clk 0:00:11.2]} 74. Rf5 {[%clk 0:00:21.2]} 74... Rh1 {[%clk 0:00:10.9]}
75. Rxg5 {[%clk 0:00:21.3]} 75... Rc1+ {[%clk 0:00:11.5]} 76. Kb5 {[%clk
0:00:21.7]} 76... Re1 {[%clk 0:00:11]} 77. e5 {[%clk 0:00:21.6]} 77... Rb1+
{[%clk 0:00:09.3]} 78. Kc5 {[%clk 0:00:21.7]} 78... Rc1+ {[%clk 0:00:09.3]} 79.
Kd4 {[%clk 0:00:22.4]} 79... c5+ {[%clk 0:00:09.1]} 80. Ke4 {[%clk 0:00:22.5]}
80... Rc4+ {[%clk 0:00:09]} 81. Kd3 {[%clk 0:00:22.5]} 81... Ra4 {[%clk
0:00:09.9]} 82. Ke3 {[%clk 0:00:22.4]} 82... Ra3+ {[%clk 0:00:09.7]} 83. Ke4
{[%clk 0:00:22.9]} 83... Ra4+ {[%clk 0:00:10.4]} 84. Ke3 {[%clk 0:00:23.3]}
84... Kd5 {[%clk 0:00:10.7]} 85. e6+ {[%clk 0:00:21.7]} 85... Kd6 {[%clk
0:00:10.4]} 86. e7 {[%clk 0:00:21.2]} 86... Ra3+ {[%clk 0:00:10.2]} 87. Ke4
{[%clk 0:00:21.3]} 87... Kxe7 {[%clk 0:00:10]} 88. Rxc5 {[%clk 0:00:20.7]} 88...
Kf6 {[%clk 0:00:10.5]} 89. Kf4 {[%clk 0:00:20.5]} 89... Ra4+ {[%clk 0:00:09.8]}
90. Kg3 {[%clk 0:00:21.1]} 90... Ra6 {[%clk 0:00:09.9]} 91. Kh4 {[%clk
0:00:21.5]} 91... Kg6 {[%clk 0:00:10.5]} 92. Rg5+ {[%clk 0:00:21.7]} 92... Kh6
{[%clk 0:00:10.6]} 93. Rb5 {[%clk 0:00:22.2]} 93... Kg6 {[%clk 0:00:10.9]} 94.
Rb4 {[%clk 0:00:22]} 94... Rc6 {[%clk 0:00:10.9]} 95. Ra4 {[%clk 0:00:22.1]}
95... Rb6 {[%clk 0:00:11.3]} 96. Ra8 {[%clk 0:00:22]} 96... Kh6 {[%clk
0:00:11.4]} 97. Rg8 {[%clk 0:00:22.2]} 97... Ra6 {[%clk 0:00:10.9]} 98. g5+
{[%clk 0:00:21.5]} 98... Kh7 {[%clk 0:00:11.3]} 99. Rb8 {[%clk 0:00:21.9]} 99...
Kg6 {[%clk 0:00:11.5]} 100. Rg8+ {[%clk 0:00:21.8]} 100... Kh7 {[%clk
0:00:11.5]} 101. Rf8 {[%clk 0:00:20.7]} 101... Kg6 {[%clk 0:00:11.4]} 102. Rf6+
{[%clk 0:00:21]} 102... Rxf6 {[%clk 0:00:12]} 103. gxf6 {[%clk 0:00:21.9]}
103... Kxf6 {[%clk 0:00:12.8]} 1/2-1/2